fUST/lending_fUST_20260214
["ID","MTS","AMOUNT","RATE_DAILY","PERIOD"]
[405335389,1771008783501,1000.0,0.00013821,2]
[405335390,1771008783602,500.0,0.00013273,2]
[405335391,1771008783778,161.0,8.3e-07,2]
[405335392,1771008784809,161.0,8.3e-07,2]
[405335393,1771008785901,161.0,8.3e-07,2]
[405335394,1771008786479,500.0,0.00013273,2]
[405335395,1771008786507,500.0,0.00013273,2]
[405335396,1771008786536,1000.0,0.00013821,2]
[405335397,1771008786565,1000.0,0.00013821,2]
[405335398,1771008786594,1500.0,0.00014368,2]
[405335399,1771008786648,669.24202811,0.00014916,2]
[405335400,1771008786677,845.20676096,0.00014368,2]
[405335401,1771008786947,161.0,8.3e-07,2]
[405335402,1771008787962,161.0,8.3e-07,2]
[405335403,1771008789042,161.0,8.3e-07,2]
[405335404,1771008790218,161.0,8.3e-07,2]
[405335405,1771008791273,161.0,8.3e-07,2]
[405335406,1771008792335,161.0,8.3e-07,2]
[405335407,1771008903092,502.93473573,0.00013699,2]
[405335408,1771008964637,500.0,0.00013699,2]
[405335409,1771008964689,1000.0,0.00014247,2]
[405335410,1771008964743,1500.0,0.00014795,2]
[405335411,1771008964803,321.68310957,0.00015342,2]
[405335412,1771008967213,354.51572721,0.00013699,2]
[405335413,1771008970908,500.0,0.00013699,2]
[405335414,1771009022904,500.0,0.00013273,2]
[405335415,1771009022932,1500.0,0.00014368,2]
[405335416,1771009022966,500.0,0.00013273,2]
[405335417,1771009022995,1000.0,0.00013821,2]
[405335418,1771009023986,500.0,0.00013699,2]
[405335419,1771009024804,504.09505111,0.00013273,2]
[405335420,1771009032799,500.0,0.00013273,2]
[405335421,1771009032852,560.70671818,0.00013821,2]
[405335422,1771009032880,439.29328182,0.00013821,2]
[405335423,1771009083819,500.0,0.00013699,2]
[405335424,1771009143136,500.0,0.00013273,2]
[405335425,1771009143188,353.66994885,0.00013821,2]
[405335426,1771009143250,386.5505037,0.00013273,2]
[405335427,1771009146422,500.0,0.00013273,2]
[405335428,1771009146952,500.0,0.00013273,2]
[405335429,1771009149472,500.0,0.00013699,2]
[405335430,1771009152712,500.0,0.00013273,2]
[405335431,1771009152750,500.0,0.00013273,2]
[405335432,1771009154754,1000.0,0.00013821,2]
[405335433,1771009154818,500.0,0.00013273,2]
[405335434,1771009154860,1500.0,0.00014368,2]
[405335435,1771009154922,1571.00437905,0.00014916,2]
[405335436,1771009158226,502.26471822,0.00013273,2]
[405335437,1771009159692,500.0,0.00013273,2]
[405335438,1771009207389,500.00921148,0.00013699,2]
[405335439,1771009208020,502.88379834,0.00014247,2]
[405335440,1771009208099,500.0,0.00013699,2]
[405335441,1771009208420,500.0,0.00013273,2]
[405335442,1771009210032,546.58941443,0.00013273,2]
[405335443,1771009210285,500.0,0.00013699,2]
[405335444,1771009210334,673.44088472,0.00014247,2]
[405335445,1771009210950,503.08289833,0.00013273,2]
[405335446,1771009212124,504.68662575,0.00013821,2]
[405335447,1771009212191,500.0,0.00013273,2]
[405335448,1771009212538,500.0,0.00013699,2]
[405335449,1771009212579,375.31483149,0.00014247,2]
[405335450,1771009264515,425.51271515,0.00013699,2]
[405335451,1771009268803,500.0,0.00013273,2]
[405335452,1771009269865,500.0,0.00013273,2]
[405335453,1771009270998,500.0,0.00013273,2]
[405335454,1771009271057,949.78290204,0.00013821,2]
[405335455,1771009271204,500.0,0.00013273,2]
[405335456,1771009271869,500.0,0.00013699,2]
[405335457,1771009275329,500.0,0.00013699,2]
[405335458,1771009275390,500.74038109,0.00014247,2]
[405335459,1771009327998,500.80139127,0.00013273,2]
[405335460,1771009332366,500.0,0.00013699,2]
[405335461,1771009383587,500.0,0.00013273,2]
[405335462,1771009443941,500.0,0.00013273,2]
[405335463,1771009506692,500.0,0.00013273,2]
[405335464,1771009507233,500.74819225,0.00013699,2]
[405335465,1771009507991,500.0,0.00013699,2]
[405335466,1771009508055,1000.0,0.00014247,2]
[405335467,1771009508215,500.0,0.00013699,2]
[405335468,1771009509825,499.91231904,0.00013699,2]
[405335469,1771009526234,500.0,0.00013273,2]
[405335470,1771009533126,500.0,0.00013273,2]
[405335478,1771009566570,500.0,0.00013273,2]
[405335479,1771009572115,500.0,0.00013273,2]
[405335480,1771009572149,1500.0,0.00014368,2]
[405335481,1771009572190,1000.0,0.00013821,2]
[405335482,1771009572240,500.0,0.00014916,2]
[405335483,1771009586777,500.0,0.00013699,2]
[405335484,1771009590050,504.04510864,0.00013273,2]
[405335485,1771009614128,5000.0,0.00023011,2]
[405335486,1771009635906,603.34330942,0.00023011,2]
[405335487,1771009644935,5000.0,0.00023011,2]
[405335488,1771009666640,5000.0,0.00023011,2]
[405335489,1771009683452,497.25844093,0.00013699,2]
[405335490,1771009688454,2403.67709847,0.00023011,2]
[405335491,1771009696487,5000.0,0.00023011,2]
[405335492,1771009715222,310.41515609,0.0002301,2]
[405335493,1771009719252,1417.54647076,0.00023011,2]
[405335494,1771009744141,602.95161427,0.00013699,2]
[405335495,1771009803981,501.08741213,0.00021918,2]
[405335558,1771009838495,-169.86490386,0.00023438,2]
[405335560,1771009838505,-202.29781642,0.00023626,2]
[405335781,1771009840612,-617.31997903,0.00023626,2]
[405336428,1771009847392,-42.08831796,0.00023626,2]
[405336430,1771009847405,-642.18687225,0.00023984,3]
[405336494,1771009848010,-1022.9659113,0.00023984,3]
[405336496,1771009848019,-791.99947807,0.00024509,3]
[405337960,1771009863363,543.57219283,0.00013821,2]
[405337991,1771009863677,500.0,0.00013273,2]
[405338157,1771009868657,351.80162554,0.00013699,2]
[405338161,1771009928028,500.0,0.00013273,2]
[405338162,1771009985288,647.09803383,0.00013699,2]
[405338163,1771010103181,500.0,0.00013699,2]
[405338164,1771010103293,489.77434589,0.00013699,2]
[405338166,1771010180752,500.0,0.00013699,2]
[405338167,1771010180791,344.24720649,0.00014247,2]
[405338168,1771010223369,160.9968606,0.00013699,2]
[405338169,1771010224108,500.0,0.00013699,2]
[405338170,1771010224166,260.05017888,0.00014247,2]
[405338171,1771010411739,500.0,0.00013273,2]
[405338172,1771010464024,500.0,0.00013699,2]
[405338173,1771010464574,504.04258696,0.00013699,2]
[405338174,1771010465582,500.0,0.00013699,2]
[405338175,1771010465997,500.0,0.00013699,2]
[405338176,1771010468613,507.48515257,0.00013699,2]
[405338178,1771010706688,189.88697358,0.00013699,2]
[405338179,1771010815135,-470.76221784,0.00024234,2]
[405338180,1771010842339,438.16441978,0.00013699,2]
[405338181,1771010920320,7264.8754148,0.000215,2]
[405338182,1771010922519,1377.58300981,0.00015,2]
[405338183,1771010955776,500.0,0.00013699,2]
[405338215,1771011032467,-3664.53425914,0.00023752,2]
[405338217,1771011032476,-777.24690444,0.00023992,2]
[405338219,1771011032486,-798.0,0.00023992,2]
[405338221,1771011032496,-725.15737052,0.00024184,3]
[405338271,1771011038617,-137.88953385,0.00024184,3]
[405338273,1771011038626,-176.24760578,0.00024281,2]
[405338275,1771011038636,-1668.0071965,0.00024544,3]
[405338277,1771011038646,-655.079958,0.00024767,2]
[405338279,1771011038655,-231.721567,0.00025027,2]
[405338281,1771011038665,-504.51920579,0.00025084,2]
[405338283,1771011038675,-524.11753916,0.00025084,2]
[405338285,1771011038685,-500.0,0.00025084,2]
[405338287,1771011038695,-500.0,0.00025084,2]
[405338289,1771011038704,-500.0,0.00025084,2]
[405338291,1771011038714,-500.0,0.00025084,2]
[405338293,1771011038724,-500.0,0.00025084,2]
[405338295,1771011038734,-500.0,0.00025084,2]
[405338297,1771011038744,-500.0,0.00025084,2]
[405338299,1771011038753,-500.0,0.00025084,2]
[405338301,1771011038763,-500.0,0.00025084,2]
[405338303,1771011038772,-429.5699303,0.00025084,2]
[405338305,1771011038782,-305.7814891,0.00025084,2]
[405338307,1771011038791,-454.29264623,0.00025084,2]
[405338309,1771011038800,-460.82968916,0.00025084,2]
[405338311,1771011038814,-2472.96748864,0.00025085,3]
[405338313,1771011038823,-182.856,0.00025554,2]
[405338315,1771011038832,-1003.40517079,0.0002558,2]
[405338317,1771011038842,-300.0,0.00025626,2]
[405338319,1771011038851,-3277.92778077,0.00025627,3]
[405338321,1771011038861,-1567.92802689,0.00025917,2]
[405338465,1771011040793,-300.0,0.00025585,10]
[405338466,1771011040803,-583.52720827,0.00025917,2]
[405338467,1771011040820,-4082.8880729,0.00026168,3]
[405338468,1771011040830,-742.81808302,0.00026168,3]
[405338469,1771011040839,-179.94773901,0.00026181,2]
[405338470,1771011040848,-205.65455887,0.00026181,2]
[405338471,1771011040858,-220.76137564,0.00026181,2]
[405338472,1771011040869,-252.29871501,0.00026181,2]
[405338473,1771011040879,-267.31352763,0.00026219,2]
[405338474,1771011040888,-207.97217482,0.00026281,2]
[405338475,1771011040898,-500.0,0.00026685,2]
[405338476,1771011040908,-4717.68605251,0.0002671,3]
[405338519,1771011046549,-170.16231252,0.0002671,3]
[405338520,1771011046559,-517.87150642,0.00026728,2]
[405338521,1771011046568,-500.0,0.00026761,2]
[405338522,1771011046579,-344.86,0.000269,7]
[405338523,1771011046588,-150.99,0.000269,7]
[405338524,1771011046598,-151.0,0.00027,7]
[405338525,1771011046608,-321.33524824,0.00027073,2]
[405338526,1771011046618,-394.21674221,0.00027073,2]
[405338527,1771011046627,-2646.50089687,0.00027251,3]
[405338528,1771011046714,-276.87745749,0.00027251,3]
[405338529,1771011046726,-295.25400852,0.00027251,3]
[405338530,1771011046738,-344.0351244,0.00027251,3]
[405338531,1771011046749,-861.18872886,0.00027251,3]
[405338532,1771011046761,-1171.71119826,0.00027251,3]
[405338533,1771011046771,-255.31508562,0.00027281,2]
[405338534,1771011046975,-207.22842045,0.00027281,2]
[405338535,1771011046985,-197.0,0.00027358,2]
[405338536,1771011046995,-600.0,0.00027386,30]
[405338537,1771011047005,-194.72792766,0.0002739,2]
[405338538,1771011047015,-250.0,0.0002739,2]
[405338539,1771011047024,-201.93286099,0.0002739,2]
[405338540,1771011047034,-250.0,0.0002739,2]
[405338541,1771011047043,-209.40437684,0.0002739,2]
[405338542,1771011047053,-250.0,0.0002739,2]
[405338543,1771011047063,-144.64532349,0.0002739,2]
[405338544,1771011063168,153.74870235,0.00013699,2]
[405338545,1771011078002,500.0,0.00013273,2]
[405338546,1771011078036,985.76510385,0.00013821,2]
[405338548,1771011130803,337.83295742,0.00013699,2]
[405338549,1771011137759,-500.0,0.00025084,2]
[405338550,1771011137785,-228.65821321,0.00025084,2]
[405338551,1771011315666,500.0,0.00013821,2]
[405338552,1771011315725,500.0,0.00013273,2]
[405338553,1771011325711,500.0,0.00013699,2]
[405338554,1771011368098,223.41139038,0.00013699,2]
[405338563,1771011424095,210.44628504,0.00013273,2]
[405338564,1771011426683,500.0,0.00013273,2]
[405338565,1771011426740,173.97860575,0.00013821,2]
[405338566,1771011432983,500.0,0.00013699,2]
[405338665,1771011606794,391.14500463,0.00013273,2]
[405338666,1771011652745,511.50032229,0.00027397,120]
[405338667,1771011668681,500.0,0.00013699,2]
[405338668,1771011668713,611.48591482,0.00014247,2]
[405338669,1771011783943,340.58336932,0.00013273,2]
[405338670,1771011985857,500.0,0.00013273,2]
[405338671,1771012013019,1500.0,0.00015,2]
[405338673,1771012022874,202.08302383,0.00015068,2]
[405338675,1771012204328,303.74224715,0.00021918,2]
[405338676,1771012206703,1746.61472539,0.00023011,2]
[405338689,1771012231635,-470.76221784,0.00023423,2]
[405338690,1771012231646,-218.22578149,0.00023523,5]
[405338691,1771012231658,-267.72119497,0.00023523,5]
[405338692,1771012231669,-745.15342987,0.00023711,3]
[405338693,1771012231679,-168.56321017,0.00023923,2]
[405338694,1771012231690,-1417.02350719,0.00024061,3]
[405338695,1771012231700,-632.53553299,0.0002458,3]
[405338696,1771012231713,-1456.35805152,0.0002458,3]
[405338697,1771012231723,-300.0,0.00025098,2]
[405338698,1771012231733,-300.0,0.00025098,2]
[405338699,1771012231744,-300.0,0.00025098,2]
[405338700,1771012231754,-1200.0,0.00025098,2]
[405338701,1771012231764,-2760.76366183,0.00025099,3]
[405338702,1771012231775,-879.0869274,0.000253,2]
[405338703,1771012231785,-901.46549637,0.0002535,2]
[405338704,1771012231795,-327.39247507,0.00025468,5]
[405338705,1771012231805,-305.50117444,0.00025572,2]
[405338706,1771012231816,-477.34558506,0.00025572,2]
[405338707,1771012231826,-201.41073368,0.00025572,2]
[405338708,1771012231836,-300.0,0.00025603,2]
[405338709,1771012231847,-162.31440991,0.00025603,2]
[405338710,1771012231857,-158.84110337,0.00025603,2]
[405338711,1771012231867,-217.14362736,0.00025603,2]
[405338712,1771012231877,-3432.63373915,0.00025618,3]
[405338713,1771012231888,-742.81808302,0.00025618,3]
[405338714,1771012231899,-198.904588,0.00025923,2]
[405338715,1771012231909,-806.90495921,0.00026137,3]
[405338716,1771012231922,-1150.5870547,0.00026137,3]
[405338717,1771012231935,-504.07830695,0.00026137,3]
[405338760,1771012237815,-1485.67731641,0.00026137,3]
[405338765,1771012237848,-0.57199536,0.00026137,3]
[405338768,1771012237869,-156.68418384,0.00026137,3]
[405338770,1771012237879,-3215.9346097,0.00026309,2]
[405338772,1771012237888,-20403.7334242,0.00026309,2]
[405338774,1771012237897,-500.0,0.00026517,2]
[405338776,1771012237906,-2959.13250677,0.00026656,3]
[405339276,1771012245899,-1736.07777941,0.00026656,3]
[405339277,1771012245908,-151.0,0.00027,7]
[405339278,1771012245918,-500.0,0.000271,2]
[405339279,1771012245927,-2333.0,0.00027101,2]
[405339280,1771012245937,-362.1767813,0.00027139,2]
[405339281,1771012245946,-5042.42593302,0.00027175,3]
[405339282,1771012245956,-420.0,0.00027187,2]
[405339283,1771012245965,-338.95673145,0.0002725,2]
[405339284,1771012245975,-394.42466163,0.00027252,2]
[405339285,1771012245984,-288.61591143,0.00027308,2]
[405339286,1771012245993,-1200.0,0.0002731,2]
[405339287,1771012246003,-221.69393457,0.00027323,2]
[405339288,1771012246011,-250.0,0.00027357,2]
[405339289,1771012246020,-500.0,0.00027357,2]
[405339290,1771012246030,-250.0,0.00027357,2]
[405339291,1771012246039,-253.34012699,0.00027357,2]
[405339292,1771012246049,-250.0,0.00027357,2]
[405339293,1771012246059,-500.0,0.00027357,2]
[405339294,1771012246068,-250.0,0.00027357,2]
[405339295,1771012246078,-250.0,0.00027357,2]
[405339296,1771012246087,-500.0,0.00027357,2]
[405339298,1771012246096,-250.0,0.00027357,2]
[405339299,1771012246105,-250.0,0.00027357,2]
[405339300,1771012246114,-500.0,0.00027357,2]
[405339301,1771012246123,-250.0,0.00027357,2]
[405339302,1771012246132,-500.0,0.00027357,2]
[405339303,1771012246141,-500.0,0.00027357,2]
[405339304,1771012246150,-194.72792766,0.00027357,2]
[405339305,1771012246159,-250.0,0.00027357,2]
[405339306,1771012246169,-500.0,0.00027357,2]
[405339307,1771012246182,-500.0,0.00027357,2]
[405339308,1771012246191,-201.93286099,0.00027357,2]
[405339309,1771012246201,-250.0,0.00027357,2]
[405339310,1771012246210,-500.0,0.00027357,2]
[405339311,1771012246220,-500.0,0.00027357,2]
[405339312,1771012246229,-209.40437684,0.00027357,2]
[405339313,1771012246239,-250.0,0.00027357,2]
[405339314,1771012246249,-500.0,0.00027357,2]
[405339315,1771012246260,-500.0,0.00027357,2]
[405339316,1771012246270,-217.15233878,0.00027357,2]
[405339317,1771012246279,-250.0,0.00027357,2]
[405339318,1771012246288,-500.0,0.00027357,2]
[405339319,1771012246298,-350.28828551,0.00027357,2]
[405339320,1771012246308,-202.95663833,0.00027357,2]
[405339321,1771012246317,-500.0,0.00027357,2]
[405339322,1771012246327,-500.0,0.00027357,2]
[405339323,1771012246336,-500.0,0.00027357,2]
[405339324,1771012246346,-500.0,0.00027357,2]
[405339325,1771012246355,-500.0,0.00027357,2]
[405339326,1771012246364,-500.0,0.00027357,2]
[405339327,1771012246373,-500.0,0.00027357,2]
[405339328,1771012246382,-500.0,0.00027357,2]
[405339329,1771012246390,-500.0,0.00027357,2]
[405339330,1771012246400,-500.0,0.00027357,2]
[405339331,1771012246409,-500.0,0.00027357,2]
[405339332,1771012246418,-258.12131247,0.00027357,2]
[405339333,1771012246427,-500.0,0.00027357,2]
[405339334,1771012246435,-500.0,0.00027357,2]
[405339335,1771012246444,-151.0,0.00027373,2]
[405339336,1771012246453,-162.003392,0.00027373,2]
[405339337,1771012246462,-197.0,0.00027392,2]
[405339338,1771012246470,-500.0,0.00027491,2]
[405339339,1771012246479,-197.0,0.00027504,2]
[405339340,1771012246488,-197.0,0.0002755,2]
[405339341,1771012246496,-197.0,0.00027554,2]
[405339342,1771012246506,-150.0,0.00027573,2]
[405339343,1771012246514,-159.68214307,0.00027649,2]
[405339344,1771012246523,-197.0,0.00027655,2]
[405339345,1771012246532,-198.0,0.00027684,2]
[405339346,1771012246541,-5389.64157986,0.00027694,3]
[405339347,1771012246550,-1378.0,0.00027749,2]
[405339348,1771012246559,-1392.921,0.00027749,2]
[405339349,1771012246568,-151.0,0.00027749,7]
[405339350,1771012246578,-151.0,0.00027876,7]
[405339351,1771012246587,-229.24596583,0.00027923,2]
[405339352,1771012246596,-500.0,0.00027936,2]
[405339353,1771012246606,-600.0,0.00027937,30]
[405339354,1771012246615,-493.42,0.00028016,2]
[405339355,1771012246625,-1484.381777,0.00028017,2]
[405339356,1771012246634,-197.0,0.00028022,2]
[405339357,1771012246644,-1697.9,0.00028059,10]
[405339358,1771012246653,-2698.15,0.00028059,10]
[405339359,1771012246663,-500.0,0.00028068,2]
[405339360,1771012246673,-151.0,0.00028069,7]
[405339361,1771012246682,-151.0,0.00028069,7]
[405339362,1771012246692,-554.659782,0.00028069,7]
[405339363,1771012246702,-554.659782,0.00028069,7]
[405339364,1771012246711,-554.659782,0.00028069,7]
[405339365,1771012246721,-554.659782,0.00028069,7]
[405339366,1771012246730,-5736.85722671,0.00028213,3]
[405339367,1771012246741,-3237.78,0.00028271,10]
[405339368,1771012246751,-4552.6883065,0.00028281,2]
[405339369,1771012246760,-197.0,0.0002831,2]
[405339370,1771012246770,-201.0,0.00028433,2]
[405339371,1771012246779,-197.0,0.0002849,2]
[405339372,1771012246788,-783.0,0.000285,2]
[405339373,1771012246797,-197.0,0.00028528,2]
[405339374,1771012246807,-554.659782,0.0002855,7]
[405339375,1771012246817,-554.659782,0.0002855,7]
[405339376,1771012246826,-198.0,0.00028555,7]
[405339377,1771012246836,-350.0,0.00028576,7]
[405339378,1771012246846,-350.0,0.00028576,7]
[405339379,1771012246855,-350.0,0.00028576,7]
[405339380,1771012246864,-350.0,0.00028576,7]
[405339381,1771012246874,-345.0,0.00028576,7]
[405339382,1771012246883,-1015.8420709,0.0002872,2]
[405339383,1771012246894,-6084.07287355,0.00028732,3]
[405339384,1771012246903,-197.0,0.0002874,2]
[405339385,1771012246913,-197.0,0.00028748,2]
[405339386,1771012246923,-151.0,0.00028767,14]
[405339387,1771012246933,-276.83608759,0.00028797,2]
[405339388,1771012246943,-2121.49384458,0.00028799,2]
[405339389,1771012246952,-6161.78173137,0.00028799,2]
[405339390,1771012246962,-1046.30874288,0.000288,2]
[405339391,1771012246972,-336.98882269,0.00028809,2]
[405339392,1771012246982,-500.0,0.00028954,2]
[405339393,1771012246991,-197.0,0.00029091,2]
[405339394,1771012247001,-198.0,0.000291,2]
[405339395,1771012247010,-1484.381777,0.00029197,2]
[405339396,1771012247020,-197.0,0.00029234,2]
[405339397,1771012247029,-2248.46,0.00029241,10]
[405339398,1771012247039,-554.659782,0.00029248,7]
[405339399,1771012247050,-554.659782,0.00029248,7]
[405339400,1771012247059,-742.81808302,0.00029248,7]
[405339401,1771012247069,-6431.2885204,0.00029251,3]
[405339402,1771012247079,-198.0,0.00029373,2]
[405339403,1771012247088,-554.659782,0.00029398,7]
[405339404,1771012247097,-554.659785,0.00029398,7]
[405339405,1771012247107,-197.0,0.00029443,7]
[405339406,1771012247116,-587.0,0.00029449,2]
[405339407,1771012247125,-197.0,0.00029555,2]
[405339408,1771012247135,-7168.6054849,0.0002967,2]
[405339409,1771012247145,-591.81,0.0002968,3]
[405339410,1771012247155,-789.07,0.0002969,3]
[405339411,1771012247164,-394.53,0.0002969,3]
[405339412,1771012247174,-197.27,0.0002969,3]
[405339413,1771012247186,-742.81808302,0.0002969,3]
[405339414,1771012247196,-11971.05906375,0.000297,2]
[405339415,1771012563515,445.0193537,0.00013699,2]
[405339416,1771012816917,500.0,0.00013699,2]
[405339417,1771012863260,500.0,0.00013273,2]
[405339418,1771012863312,453.43500235,0.00013821,2]
[405339419,1771013125998,500.0,0.00013699,2]
[405339420,1771013126047,924.21621103,0.00014247,2]
[405339421,1771013184045,515.39829676,0.00013699,2]
[405339422,1771013207145,-1082.9829924,0.00023244,2]
[405339423,1771013343683,500.0,0.00013699,2]
[405339424,1771013400136,5000.0,0.00023011,2]
[405339425,1771013404147,514.37286705,0.00021918,2]
[405339438,1771013431801,-5000.0,0.00023337,2]
[405339439,1771013431811,-156.62893489,0.00023572,2]
[405339440,1771013431820,-650.77328701,0.00023666,3]
[405339441,1771013431830,-1216.09740374,0.00024024,3]
[405339442,1771013431839,-1781.42152048,0.00024548,3]
[405339443,1771013431849,-300.0,0.00025072,2]
[405339444,1771013431859,-2346.74563721,0.00025073,3]
[405339445,1771013431868,-713.927015,0.00025174,2]
[405339446,1771013431878,-1447.75875583,0.00025388,2]
[405339479,1771013437915,-207.62217842,0.00024953,2]
[405339481,1771013437926,-3729.96857837,0.00025388,2]
[405339483,1771013437938,-500.0,0.00025388,2]
[405339486,1771013437949,-500.0,0.00025388,2]
[405339488,1771013437962,-500.0,0.00025388,2]
[405339490,1771013437973,-500.0,0.00025388,2]
[405339492,1771013437984,-500.0,0.00025388,2]
[405339494,1771013437995,-500.0,0.00025388,2]
[405339495,1771013438006,-500.0,0.00025388,2]
[405339497,1771013438016,-500.0,0.00025388,2]
[405339499,1771013438025,-500.0,0.00025388,2]
[405339501,1771013438035,-500.0,0.00025388,2]
[405339503,1771013438045,-500.0,0.00025388,2]
[405339505,1771013438055,-500.0,0.00025388,2]
[405339507,1771013438065,-500.0,0.00025388,2]
[405339509,1771013438075,-500.0,0.00025388,2]
[405339511,1771013438087,-500.0,0.00025388,2]
[405339513,1771013438097,-500.0,0.00025388,2]
[405339515,1771013438107,-500.0,0.00025388,2]
[405339517,1771013438120,-492.46594768,0.00025388,2]
[405339519,1771013438132,-500.0,0.00025388,2]
[405339521,1771013438144,-500.0,0.00025388,2]
[405339523,1771013438156,-500.0,0.00025388,2]
[405339525,1771013438166,-500.0,0.00025388,2]
[405339527,1771013438176,-500.0,0.00025388,2]
[405339529,1771013438188,-500.0,0.00025388,2]
[405339531,1771013438200,-500.0,0.00025388,2]
[405339534,1771013438211,-500.0,0.00025388,2]
[405339536,1771013438223,-500.0,0.00025388,2]
[405339537,1771013438233,-500.0,0.00025388,2]
[405339539,1771013438244,-430.3415963,0.00025388,2]
[405339541,1771013438261,-500.0,0.00025388,2]
[405339543,1771013438274,-500.0,0.00025388,2]
[405339545,1771013438286,-500.0,0.00025388,2]
[405339547,1771013438296,-500.0,0.00025388,2]
[405339549,1771013438312,-512.28712343,0.00025388,2]
[405339552,1771013438324,-500.0,0.00025388,2]
[405339554,1771013438335,-500.0,0.00025388,2]
[405339556,1771013438347,-500.0,0.00025388,2]
[405339557,1771013438365,-500.0,0.00025388,2]
[405339560,1771013438375,-500.0,0.00025388,2]
[405339562,1771013438387,-500.0,0.00025388,2]
[405339564,1771013438400,-500.0,0.00025388,2]
[405339566,1771013438420,-500.0,0.00025388,2]
[405339567,1771013438430,-500.0,0.00025388,2]
[405339570,1771013438439,-500.0,0.00025388,2]
[405339571,1771013438454,-500.0,0.00025388,2]
[405339574,1771013438474,-500.0,0.00025388,2]
[405339575,1771013438484,-500.0,0.00025388,2]
[405339578,1771013438496,-500.0,0.00025388,2]
[405339579,1771013438512,-500.0,0.00025388,2]
[405339581,1771013438525,-196.33759345,0.00025388,2]
[405339583,1771013438538,-500.0,0.00025388,2]
[405339585,1771013438551,-500.0,0.00025388,2]
[405339588,1771013438569,-500.0,0.00025388,2]
[405339589,1771013438582,-500.0,0.00025388,2]
[405339592,1771013438595,-500.0,0.00025388,2]
[405339594,1771013438608,-500.0,0.00025388,2]
[405339595,1771013438621,-500.0,0.00025388,2]
[405339596,1771013438631,-500.0,0.00025388,2]
[405339597,1771013438642,-500.0,0.00025388,2]
[405339598,1771013438653,-500.0,0.00025388,2]
[405339599,1771013438663,-500.0,0.00025388,2]
[405339600,1771013438672,-500.0,0.00025388,2]
[405339601,1771013438683,-500.0,0.00025388,2]
[405339602,1771013438693,-500.0,0.00025388,2]
[405339603,1771013438706,-500.0,0.00025388,2]
[405339604,1771013438715,-500.0,0.00025388,2]
[405339605,1771013438726,-412.73231438,0.00025388,2]
[405339606,1771013438736,-500.0,0.00025388,2]
[405339607,1771013438745,-500.0,0.00025388,2]
[405339608,1771013438755,-500.0,0.00025388,2]
[405339609,1771013438765,-583.04617164,0.00025388,2]
[405339610,1771013438775,-435.73314461,0.00025388,2]
[405339611,1771013438785,-151.0,0.00025389,2]
[405339612,1771013438796,-151.0,0.00025389,2]
[405339613,1771013438807,-151.0,0.00025389,2]
[405339614,1771013438818,-151.0,0.0002539,2]
[405339615,1771013438828,-151.0,0.0002539,2]
[405339617,1771013438837,-151.0,0.0002539,2]
[405339618,1771013438847,-184.82214317,0.00025572,2]
[405339620,1771013438857,-500.0,0.00025591,2]
[405339622,1771013438866,-277.329891,0.00025592,2]
[405339625,1771013438876,-277.329891,0.00025592,2]